Cogmind - Beta 15 @@@ ROGUE MODE // 2025.05.08 @ 00:29:30 Player: Owlsley Result: Destroyed by D-53 Grenadier with Mini Grenade Launcher Performance ------------- Evolutions (0) 0 Regions Visited (4) 800 Robots Destroyed (10) 50 Value Destroyed (240) 240 Prototype IDs (27) 540 Alien Tech Used (0) 0 Bonus (300) 300 TOTAL SCORE: 1930 Bonus ------- Aligned with FarCom 300 Cogmind --------- Core Integrity 0/250 Matter 273/300 Energy 34/100 System Corruption 1% Temperature Warm (191) Movement Core (400) Ox7 Location -9/Mines Parts ------- > --- POWER (1) -------- (None) > --- PROPULSION (2) --- (None) > --- UTILITY (2) ------ Large Storage Unit > --- WEAPON (2) ------- Assault Rifle Light Assault Rifle > --- INVENTORY (15) --- Light Ion Engine Potential Leg Potential Leg Compact Wheel Compact Wheel Small Storage Unit Large Matter Pod (150) High-capacity Matter Pod (200) Visual Processing Unit Grenade Launcher Peak State ------------ > --- POWER ------------ Light Ion Engine > --- PROPULSION ------- Light Treads Light Treads > --- UTILITY ---------- Large Storage Unit Seismic Detector > --- WEAPON ----------- EM Pulse Gun Assault Rifle > --- INVENTORY -------- Light Ion Engine Light Ion Engine Potential Leg Potential Leg Compact Wheel Compact Wheel Small Storage Unit Large Matter Pod Visual Processing Unit Medium Laser Medium Laser Beam Cannon Assault Rifle Light Assault Rifle Grenade Launcher [Rating: 10] Favorites ----------- Power Light Ion Engine Engine Light Ion Engine Propulsion Light Treads Treads Light Treads Leg Aluminum Leg Utility Seismic Detector Device Seismic Detector Storage Large Storage Unit Weapon Assault Rifle Energy Gun EM Pulse Gun Energy Cannon Beam Cannon Ballistic Gun Assault Rifle Build | -11 -10 -10 -10 -9 ------- Run | Yrd Mat Min Exi Min Slots Evolved . | . . . . . Power . | . . . . . Propulsion . | . . . . . Utility . | . . . . . Weapon . | . . . . . Parts Attached 9 | 3 1 . . 5 Power . | . . . . . Engine . | . . . . . Core . | . . . . . Reactor . | . . . . . Propulsion 2 | 2 . . . . Treads 2 | 2 . . . . Leg . | . . . . . Wheel . | . . . . . Hover . | . . . . . Flight . | . . . . . Utility 2 | 1 1 . . . Device 1 | 1 . . . . Storage 1 | . 1 . . . Processor . | . . . . . Hackware . | . . . . . Protection . | . . . . . Artifact . | . . . . . Weapon 5 | . . . . 5 Energy Gun 2 | . . . . 2 Energy Cannon 1 | . . . . 1 Ballistic Gun 2 | . . . . 2 Ballistic Cannon . | . . . . . Launcher . | . . . . . Special Weapon . | . . . . . Impact Weapon . | . . . . . Slashing Weapon . | . . . . . Piercing Weapon . | . . . . . Special Melee Weapon . | . . . . . Unidentified Prototypes . | . . . . . Parts Lost 9 | . . . . 9 Power 1 | . . . . 1 Propulsion 2 | . . . . 2 Utility 1 | . . . . 1 Weapon 5 | . . . . 5 Highest Loss Streak 9 | . . . . 9 To Critical Strikes . | . . . . . Average Backups 14 | 6 11 15 15 13 Power 1 | 1 2 2 1 1 Propulsion 4 | 4 4 4 4 4 Utility 2 | . 1 2 3 4 Weapon 5 | 1 3 6 6 4 Tool/Special . | . . . . . Unused Backups 11 | . . . 3 8 Power 2 | . . . 1 1 Propulsion 4 | . . . 2 2 Utility 4 | . . . . 4 Weapon 1 | . . . . 1 Tool/Special . | . . . . . Average Slot Usage (%) 99 | . 100 100 100 79 Engine 13 | . 14 14 14 8 Treads 27 | . 28 28 28 19 Device 13 | . 14 14 14 11 Storage 14 | . 14 14 14 14 Energy Gun 13 | . 14 14 14 11 Ballistic Gun 13 | . 14 14 14 11 Peak Build Rating 10 | 7 8 8 10 10 Average Rating 8 | 6 7 8 8 7 On Entrance 7 | 6 7 8 8 10 Naked Turns . | . . . . . Heaviest Build 28 | 13 28 28 28 28 Greatest Support 40 | 40 40 40 40 40 Greatest Overweight (x) . | . . . . . Average Overweight (x) . | . . . . . Largest Inventory Capacity 15 | 8 15 15 15 15 Average Capacity 14 | 8 14 15 15 15 Most Carried 15 | 6 15 15 15 15 Average Carried 14 | 6 11 14 14 13 Final Capacity 15 | 8 15 15 15 15 Final Carried 15 | 6 15 15 15 10 Class Distribution -------------------- 100% | Mutant Dominant Class ---------------- Mutant | -10/Materials Mutant | -10/Mines Mutant | -10/Exiles Mutant | -9/Mines Resources | -11 -10 -10 -10 -9 ----------- Run | Yrd Mat Min Exi Min Matter Collected 317 | 242 35 40 . . Remotely . | . . . . . Salvage Created 406 | 70 100 182 . 54 Parts 24 | 6 1 13 . 4 Haulers Intercepted . | . . . . . Recyclers Shooed . | . . . . . Parts Field Recycled . | . . . . . Retrieved Matter . | . . . . . Parts Self-Destructed . | . . . . . Prevented . | . . . . . Kills | -11 -10 -10 -10 -9 ------- Run | Yrd Mat Min Exi Min Combat Hostiles Destroyed 5 | . 2 2 . 1 Guns 3 | . 2 1 . . Cannons 1 | . . . . 1 AOE 1 | . . 1 . . Classes Destroyed 6 | 2 1 1 . 2 Worker 1 | . . 1 . . Builder 1 | . . . . 1 Tunneler 1 | 1 . . . . Recycler 2 | 1 . 1 . . Grunt 4 | . 2 2 . . Demolisher 1 | . . . . 1 Best Kill Streak 4 | 2 2 4 . 2 Combat Bots Only 2 | . 2 1 . 1 Max Kills in Single Turn 2 | 1 1 2 . 1 Gunslinging . | . . . . . Exploded 1 | . . 1 . . Melee . | . . . . . Uniques/NPCs Destroyed . | . . . . . Combat | -11 -10 -10 -10 -9 -------- Run | Yrd Mat Min Exi Min Hostile Shots Fired 45 | . 7 15 . 23 Missed 6 | . 2 4 . . Hits 39 | . 5 11 . 23 Projectile 39 | . 5 11 . 23 AOE 26 | . . . . 26 Damage Taken 1167 | . 82 158 . 927 Core 263 | . 33 43 . 187 Absorbed by Shields . | . . . . . Core Remaining (%) 100 | 100 . . . . Volleys Fired 29 | 4 5 11 . 9 Largest 2 | 2 2 2 . 2 Hottest 110 | 60 60 60 . 110 Shots Fired 57 | 8 10 22 . 17 Gun 54 | 8 10 22 . 14 Cannon 3 | . . . . 3 Launcher . | . . . . . Special . | . . . . . Kinetic 27 | 4 5 11 . 7 Thermal 8 | . . . . 8 Explosive . | . . . . . Electromagnetic 22 | 4 5 11 . 2 Robot Hit Streak 6 | 6 5 3 . 3 Robot Miss Streak 2 | . 2 2 . 2 Penetration Max . | . . . . . Secondary Targets . | . . . . . Shots Hit Robots 33 | 6 7 11 . 9 Core Hits 17 | 1 4 6 . 6 Critical Kills 1 | . 1 . . . Critical Parts Destroyed . | . . . . . Critical Strikes 2 | . 1 . . 1 Burn 1 | . . . . 1 Destroy 1 | . 1 . . . Melee Attacks . | . . . . . Impact . | . . . . . Slashing . | . . . . . Piercing . | . . . . . Sneak Attacks . | . . . . . Combat Hostiles . | . . . . . Follow-up Attacks . | . . . . . Damage Inflicted 584 | 123 82 244 . 135 Guns 421 | 76 82 163 . 100 Cannons 35 | . . . . 35 Explosions 128 | 47 . 81 . . Melee . | . . . . . Ramming . | . . . . . Kinetic 205 | 36 44 63 . 62 Thermal 201 | 47 . 81 . 73 Explosive . | . . . . . Electromagnetic 178 | 40 38 100 . . Impact . | . . . . . Slashing . | . . . . . Piercing . | . . . . . Highest Corruption 1 | . 1 1 1 1 Average Corruption 1 | . 1 1 1 1 Corruption Purged . | . . . . . Corruption Blocked . | . . . . . Effects 8 | . 1 4 2 1 Message Errors 2 | . 1 1 . . Matter Fused 1 | . . 1 . . Heat Flow Errors 3 | . . 2 . 1 Parts Fused 1 | . . . 1 . Data Loss (major) 1 | . . . 1 . Overload Shots . | . . . . . Overflow Damage 17 | 17 . . . . Projectiles . | . . . . . Explosions 17 | 17 . . . . Melee . | . . . . . Knockbacks . | . . . . . Impact . | . . . . . Kinetic . | . . . . . Secondary . | . . . . . Self-Inflicted Damage . | . . . . . Shots . | . . . . . Rammed . | . . . . . Targets Rammed . | . . . . . Kicked . | . . . . . Crushed . | . . . . . Highest Temperature 248 | . 45 201 . 248 Average Temperature 63 | . 30 59 . 100 Received Heat Transfer 150 | . 45 93 . 12 Siege Activations . | . . . . . Martial Activations . | . . . . . Shielding Activations . | . . . . . Robots Disrupted . | . . . . . Combat Hostiles . | . . . . . Robots Corrupted . | . . . . . Combat Hostiles . | . . . . . Parts Fried . | . . . . . Impact Corruptions . | . . . . . Robots Melted . | . . . . . Combat Hostiles . | . . . . . Parts Melted . | . . . . . Heat Transferred 359 | 50 . 50 . 259 Parts Sabotaged . | . . . . . Parts Stolen . | . . . . . Parts Stripped . | . . . . . Power Chain Reactions 2 | 1 . 1 . . Alert | -11 -10 -10 -10 -9 ------- Run | Yrd Mat Min Exi Min Maximum Alert Level . | . . . . . Low Security (%) 100 | 100 100 100 . 100 Level 1 . | . . . . . Level 2 . | . . . . . Level 3 . | . . . . . Level 4 . | . . . . . Level 5 . | . . . . . High Security . | . . . . . Max Security . | . . . . . Peak Influence 53 | 10 40 53 . 30 Initial 9 | . . 9 . . Average 5 | 2 6 4 . 4 Influence Increases 186 | 10 78 63 . 35 Destroy 0b10 Robot/C 100 | . 40 40 . 20 Destroy 0b10 Robot/NC 25 | 10 . 10 . 5 Destroy Leader 30 | . 10 10 . 10 Successful Hack 28 | . 28 . . . Destroy Structure 3 | . . 3 . . Influence Decreases 171 | 10 52 89 . 20 Entered New Map 17 | . . 17 . . Time Decay 144 | 10 52 72 . 10 Lost Part 10 | . . . . 10 Squads Dispatched . | . . . . . Investigation . | . . . . . Extermination . | . . . . . Reinforcement . | . . . . . Assault . | . . . . . Garrison . | . . . . . Intercept . | . . . . . Searches Triggered . | . . . . . Construction Impeded . | . . . . . Haulers Reinforced . | . . . . . Active Scanning Responses . | . . . . . Cargo Convoy Interrupts . | . . . . . Stealth | -11 -10 -10 -10 -9 --------- Run | Yrd Mat Min Exi Min Distress Signals . | . . . . . Communications Jammed . | . . . . . Distress Signals . | . . . . . Times Spotted 6 | . 2 2 . 2 Peak Tracking Total 2 | . 2 2 . 2 Tactical Retreats . | . . . . . Traps | -11 -10 -10 -10 -9 ------- Run | Yrd Mat Min Exi Min Traps Triggered 1 | . 1 . . . Indirectly . | . . . . . Trap Hack Attempts . | . . . . . Triggered . | . . . . . Disarmed . | . . . . . Reprogrammed . | . . . . . Reused . | . . . . . Traps Extracted . | . . . . . Installed . | . . . . . Triggered . | . . . . . Machines | -11 -10 -10 -10 -9 ---------- Run | Yrd Mat Min Exi Min Machines Disabled . | . . . . . Max in Single Turn . | . . . . . Machines Repaired . | . . . . . Machines Dismantled . | . . . . . Machines Sabotaged . | . . . . . Overloaded Fab Kills . | . . . . . Hacking | -11 -10 -10 -10 -9 --------- Run | Yrd Mat Min Exi Min Machines Accessed 9 | . 6 . 3 . Terminals 6 | . 6 . . . Fabricators . | . . . . . Repair Stations . | . . . . . Recycling Units . | . . . . . Scanalyzers . | . . . . . Garrison Access . | . . . . . Total Hacks 34 | . 16 . 18 . Successful 23 | . 5 . 18 . Failed 11 | . 11 . . . Catastrophic . | . . . . . Database Lockouts . | . . . . . Manual 7 | . 6 . 1 . Terminals 16 | . 16 . . . Fabricators . | . . . . . Repair Stations . | . . . . . Recycling Units . | . . . . . Scanalyzers . | . . . . . Garrison Access . | . . . . . Terminal Hacks 23 | . 5 . 18 . Record 17 | . . . 17 . Robot Analysis 1 | . 1 . . . Prototype ID Bank 2 | . 2 . . . Branch Access Points 1 | . 1 . . . Hauler Manifests 1 | . 1 . . . Proto ID Catalog 1 | . . . 1 . Fabricator Hacks . | . . . . . Repair Station Hacks . | . . . . . Recycling Unit Hacks . | . . . . . Scanalyzer . | . . . . . Garrison Access Hacks . | . . . . . Unauthorized Hacks . | . . . . . Terminals . | . . . . . Fabricators . | . . . . . Repair Stations . | . . . . . Recycling Units . | . . . . . Scanalyzers . | . . . . . Garrison Access . | . . . . . Data Cores Recovered . | . . . . . Used . | . . . . . Hacking Detections 6 | . 6 . . . Full Trace Events . | . . . . . Feedback Events . | . . . . . Feedback Blocked . | . . . . . Robot Schematics Acquired . | . . . . . Robots Built . | . . . . . Authchips . | . . . . . Time . | . . . . . Total Robot Build Rating . | . . . . . Part Schematics Acquired . | . . . . . Parts Built . | . . . . . Authchips . | . . . . . Time . | . . . . . Total Part Build Rating . | . . . . . Parts Repaired . | . . . . . Time . | . . . . . Parts Recycled . | . . . . . Recycled Matter . | . . . . . Retrieved Matter . | . . . . . Retrieved Components . | . . . . . Parts Scanalyzed . | . . . . . Part Schematics Acquired . | . . . . . Parts Damaged . | . . . . . Bothacking | -11 -10 -10 -10 -9 ------------ Run | Yrd Mat Min Exi Min Used RIF Installer . | . . . . . Robots Hacked . | . . . . . Non-combat . | . . . . . Combat . | . . . . . Robot Hacks Applied . | . . . . . Relay Couplers Released . | . . . . . Fabnet Peak Effective % . | . . . . . Robots Rewired . | . . . . . Allies Hacked . | . . . . . Hacks Repelled . | . . . . . Allies | -11 -10 -10 -10 -9 -------- Run | Yrd Mat Min Exi Min Total Allies 4 | . . 4 . . Largest Group 4 | . . 4 3 3 Highest-Rated Group 71 | . . 71 40 40 Highest-Rated Ally 31 | . . 31 16 16 Total Orders . | . . . . . Ally Attacks 1 | . . . . 1 Total Damage . | . . . . . Kills . | . . . . . Allies Corrupted . | . . . . . Allies Melted . | . . . . . Intel | -11 -10 -10 -10 -9 ------- Run | Yrd Mat Min Exi Min Active Infowar (turns) 1768 | 11 380 817 533 27 Seismic 1768 | 11 380 817 533 27 Robot Analysis Total 1 | . 1 . . . Derelict Logs Recovered 2 | . . 2 . . Drone Launches . | . . . . . Drone Recoveries . | . . . . . Exploration | -11 -10 -10 -10 -9 ------------- Run | Yrd Mat Min Exi Min Turns Passed 1808 | 35 381 817 533 42 Spaces Moved 1059 | 12 222 487 331 7 Core . | . . . . . Treads 1059 | 12 222 487 331 7 Legs . | . . . . . Wheels . | . . . . . Hover . | . . . . . Flight . | . . . . . Fastest Speed 160 | 160 160 160 160 160 Average Speed 160 | 160 160 160 160 160 Slowest Speed 160 | 160 160 160 160 160 Overloaded Moves . | . . . . . Propulsion Burnouts . | . . . . . Robots Hopped . | . . . . . Potential Cave-ins . | . . . . . Cave-ins Triggered . | . . . . . Exploration Rate (%) 43 | 2 47 98 66 5 Regions Visited 4 Branch Regions 3 Pre-discovered Areas 1 | . . 1 . . Known Exits Taken 2 | . 1 1 . . Unknown Exits Taken 2 | 1 . . 1 . Scrap Searched 2 | . . 2 . . Spaces Dug . | . . . . . Terrain Destroyed 4 | 1 . 3 . . Melee . | . . . . . Projectile . | . . . . . AOE 4 | 1 . 3 . . Terrain Rammed . | . . . . . Walls Destroyed . | . . . . . Machines Disabled . | . . . . . Actions | -11 -10 -10 -10 -9 --------- Run | Yrd Mat Min Exi Min Total 1115 | 18 237 503 336 21 Wait 4 | . . 4 . . Move 1055 | 11 221 486 330 7 Hop . | . . . . . Pick Up 13 | . 9 1 3 . Fast Attach 1 | 1 . . . . Attach 5 | . . . . 5 Detach . | . . . . . Swap 4 | 2 2 . . . Drop 4 | . . 1 3 . Fire 29 | 4 5 11 . 9 Melee . | . . . . . Ram . | . . . . . Kick . | . . . . . Crush . | . . . . . Escape Stasis . | . . . . . Rewire . | . . . . . Trap . | . . . . . Miscellaneous . | . . . . . Route ------- -11/Scrapyard -10/Materials -10/Mines (discovered 3 exits: [*Mat x2] / *Exi) -10/Exiles -9/Mines History --------- Turn | Location | Event 13 | -11/Scrapyard | Discovered new exit (range 2) 36 | -11/Scrapyard | Entered Materials 37 | -10/Materials | Met a group of wandering Federalists 133 | -10/Materials | Identified exit to Mines 312 | -10/Materials | Build established: Mutant 417 | -10/Materials | Entered Mines 526 | -10/Mines | Discovered new exit (range 10) 531 | -10/Mines | Identified exit to Exiles 741 | -10/Mines | Assisted by bots powering up and referring to "LRC-V3" 907 | -10/Mines | Discovered new exit (range 12) 917 | -10/Mines | Received a Mining Laser from a helpful Derelict 1227 | -10/Mines | Deemed a non-threat by the Exiles lab entrance 1234 | -10/Mines | Entered Exiles 1234 | -10/Exiles | Accompanied by 3 allies 1273 | -10/Exiles | Met 8R-AWN 1300 | -10/Exiles | Met EX-HEX 1354 | -10/Exiles | Met EX-BIN 1420 | -10/Exiles | Aligned with FarCom system 1422 | -10/Exiles | Given EX-Vault access code 1458 | -10/Exiles | Opened EX-Vault 1535 | -10/Exiles | Found Potential Leg 1537 | -10/Exiles | Found Potential Leg 1572 | -10/Exiles | Warned to stay clear of 0b10 Research branches 1612 | -10/Exiles | Met EX-DEC 1746 | -10/Exiles | Discovered new exit (range 14) 1767 | -10/Exiles | Left Exiles lab with Potential Leg 1767 | -10/Exiles | Entered Mines 1767 | -9/Mines | Accompanied by 3 allies 1768 | -9/Mines | Assembled infested the area 1773 | -9/Mines | Assisted by a Guerilla fighting off Assembled 1786 | -9/Mines | Core integrity fell below 50% 1798 | -9/Mines | Core integrity fell below 20% 1809 | -9/Mines | Destroyed by D-53 Grenadier with Mini Grenade Launcher Last Messages --------------- 01794_ Seismic Detector destroyed. 01794_ Med. Laser destroyed. 01795_ The unstable cave ceiling collapses. 01797_ U-05 Engineer system corrupted by crushing effect. 01798_ The unstable cave ceiling collapses. 01799_ Med. Laser destroyed. 01799_ U-05 Engineer lays Concrete. 01800_ D-53 Grenadier heat short circuits Lgt. Deuterium Engine. 01800_ D-53 Grenadier destroyed. 01800_ K-01 Serf collects debris. 01800_ U-05 Engineer lays Concrete. 01801_ System corrupted: Heat flow error (+205). 01801_ The unstable cave ceiling collapses. 01801_ U-05 Engineer lays Concrete. 01802_ U-05 Engineer builds a Wall. 01803_ Beam Cannon destroyed. 01804_ The unstable cave ceiling collapses. 01807_ U-05 Engineer destroyed. 01807_ U-05 Engineer builds a Wall. 01809_ K-01 Serf collects debris. Map ----- +----------------------------------------------------+ | ?????????????????????????????????????????? | | ?????????????????????????????????????????? | | ?????????????????????????????????????????? | | ?????????????????????????????????????????? | | ?????????????????????????????????????????? | | ?????????????????????????????????????????? | | ?????????????????????????????????????????? | | ?????????????????????????????????????????? | | ?????????????????????????????????????????? | | ?????????????????????????????????????????? | | ?????????????????????????????????????????? | | ?????????????????????????????????????????? | | ?????????????????????????????????????????? | | ?????????????????????????????????????????? | | ?????????????????????????????????????????? | | ?????????????????????????????????????????? | | ?????????????????????????????????????????? | | ?????????????????????????????????????????? | | ?????????????????????????????????????????? | | ?????????????????????????????????????????? | | ??????????????????????#######????????????? | | ???????????????????#?## ##???????????? | | ??????????????????##;# ##??????????? | | ??????????????????#; #??????????? | | ?????????????????##; #??????????? | | ????????????# @ #??????????? | | ?????????????????##; #??????????? | | ??????????????????#; #??????????? | | ??????????????????# ##??????????? | | ??????????????????#; d=! ##???????????? | | ??????????????????#### !%## #????????????? | | ????????????????????# %####????????????? | | ????????????????????# ????????????? | | ????????????????????###$k % ????????????? | | ??????????????????????##### ???????????? | | ???????????????????????????###???????????? | | ?????????????????????????????????????????? | | ?????????????????????????????????????????? | | ?????????????????????????????????????????? | | ?????????????????????????????????????????? | | ?????????????????????????????????????????? | | ?????????????????????????????????????????? | | ?????????????????????????????????????????? | | ?????????????????????????????????????????? | | ?????????????????????????????????????????? | | ?????????????????????????????????????????? | | ?????????????????????????????????????????? | | ?????????????????????????????????????????? | | ?????????????????????????????????????????? | | ?????????????????????????????????????????? | +----------------------------------------------------+ Best States ------------- Heat Dissipation 25 Energy Generation 10 Energy Capacity 125 Matter Stores 300 Matter Capacity 300 Sight Range 16 Terrain Scan Density 10 Evasion (%) 40 Recoil Reduction 2 Item Schematics ----------------- None Robot Schematics ------------------ None Fabricated ------------ Nothing Repaired ---------- Nothing Alien Tech Used ----------------- None Achievements -------------- None Challenges ------------ None Game ------ Seed LobotomyRecyclingClaymores Manual? 0 Play Time 00:09:10 Cumulative 2.7 hours Start 2025.05.08 @ 00:21:12 End 2025.05.08 @ 00:29:30 Sessions 1 Manual Loads 0 Difficulty Rogue Special Mode None Game No. 6 Rogue 5 Adventurer 1 Explorer 0 Win Type - Total 1 Types 1/0/0/0/0/0/0/0/0/0 Lore% 13 Gallery% 11 Achievement% 76 Wizard Run 0 Options --------- Layout 0 ASCII 0 Keyboard 0 Movement Mouse Keybinds 0 Fullscreen 2 Font 18/SmallcapsGlow Map View 76x50 Zoom Use 0% Tactical HUD 1 Map Filters NONE Filters NONE Steam 1 RUN: c48a8cfb-84c0-4252-8b8a-0fbe9777a51e